fUST/lending_fUST_20250630
["ID","MTS","AMOUNT","RATE_DAILY","PERIOD"]
[368631073,1751253036394,-151.0,0.00018252,2]
[368631074,1751253036403,-462.00951522,0.00018252,2]
[368631075,1751253036413,-460.0,0.00018252,2]
[368631076,1751253036423,-466.30707437,0.00018252,2]
[368631077,1751253036432,-462.7388606,0.00018252,2]
[368631078,1751253036441,-460.0,0.00018252,2]
[368631079,1751253036450,-151.0,0.00018252,2]
[368631080,1751253036461,-151.0,0.00018252,2]
[368631081,1751253036471,-151.0,0.00018252,2]
[368631082,1751253036480,-280.73122,0.00018252,2]
[368631083,1751253036490,-460.0,0.00018252,2]
[368631084,1751253036499,-280.73122,0.00018252,2]
[368631085,1751253036508,-218.456007,0.00018252,2]
[368631086,1751253036518,-218.456007,0.00018252,2]
[368631087,1751253036527,-460.0,0.00018252,2]
[368631088,1751253036536,-151.0,0.00018253,2]
[368631089,1751253036546,-151.0,0.00018253,2]
[368631090,1751253036555,-151.0,0.00018253,2]
[368631091,1751253036564,-151.0,0.00018253,2]
[368631092,1751253036574,-455.122158,0.00018253,2]
[368631093,1751253036583,-513.40167,0.00018253,2]
[368631094,1751253036593,-513.40167,0.00018253,2]
[368631095,1751253036603,-357.86870065,0.00018253,2]
[368631096,1751253036612,-460.0,0.00018253,2]
[368631097,1751253036622,-683.44,0.00018253,2]
[368631098,1751253036631,-151.0,0.00018253,2]
[368631099,1751253036641,-151.0,0.00018253,2]
[368631100,1751253036650,-460.0,0.00018253,2]
[368631101,1751253036660,-460.0,0.00018253,2]
[368631102,1751253036669,-462.75558667,0.00018253,2]
[368631103,1751253036678,-460.0,0.00018253,2]
[368631104,1751253036687,-460.0,0.00018253,2]
[368631105,1751253036697,-460.0,0.00018253,2]
[368631106,1751253036707,-151.0,0.00018253,2]
[368631107,1751253036716,-151.0,0.00018253,2]
[368631108,1751253036726,-460.0,0.00018253,2]
[368631109,1751253036736,-151.0,0.00018253,2]
[368631110,1751253036745,-151.0,0.00018253,2]
[368631111,1751253036755,-460.0,0.00018253,2]
[368631112,1751253036764,-460.0,0.00018253,2]
[368631113,1751253036774,-151.0,0.00018253,2]
[368631114,1751253036783,-151.0,0.00018253,2]
[368631115,1751253036793,-151.0,0.00018253,2]
[368631116,1751253036802,-151.0,0.00018253,2]
[368631117,1751253036811,-252.486506,0.00018253,2]
[368631118,1751253036820,-151.0,0.00018253,2]
[368631119,1751253036830,-151.0,0.00018253,2]
[368631120,1751253036839,-460.0,0.00018253,2]
[368631121,1751253036848,-1169.88094,0.00018253,2]
[368631122,1751253036857,-501.284768,0.00018253,2]
[368631123,1751253036866,-1169.88094,0.00018253,2]
[368631124,1751253036875,-501.284768,0.00018253,2]
[368631125,1751253036884,-740.631066,0.00018253,2]
[368631126,1751253036893,-740.631066,0.00018253,2]
[368631127,1751253036903,-192.835188,0.00018253,2]
[368631128,1751253036912,-192.835188,0.00018253,2]
[368631129,1751253036922,-460.0,0.00018253,2]
[368631130,1751253036931,-463.43662437,0.00018253,2]
[368631131,1751253036940,-465.24515342,0.00018253,2]
[368631132,1751253036950,-460.0,0.00018253,2]
[368631133,1751253036959,-151.0,0.00018254,2]
[368631134,1751253036969,-151.0,0.00018254,2]
[368631135,1751253036978,-151.0,0.00018254,2]
[368631136,1751253036988,-151.0,0.00018254,2]
[368631137,1751253036997,-455.122158,0.00018254,2]
[368631138,1751253037006,-513.40167,0.00018254,2]
[368631139,1751253037015,-513.40167,0.00018254,2]
[368631140,1751253037024,-513.40167,0.00018254,2]
[368631141,1751253037034,-513.40167,0.00018254,2]
[368631142,1751253037044,-473.42604859,0.00018254,2]
[368631143,1751253037054,-460.0,0.00018254,2]
[368631144,1751253037064,-460.0,0.00018254,2]
[368631145,1751253037074,-460.0,0.00018254,2]
[368631146,1751253037083,-462.26133505,0.00018254,2]
[368631147,1751253037092,-460.0,0.00018254,2]
[368631148,1751253037102,-228.30116622,0.00018254,2]
[368631149,1751253037111,-460.0,0.00018254,2]
[368631150,1751253037120,-460.0,0.00018254,2]
[368631151,1751253037130,-460.0,0.00018254,2]
[368631152,1751253037139,-462.84629544,0.00018254,2]
[368631153,1751253037148,-460.0,0.00018254,2]
[368631154,1751253037157,-462.94713589,0.00018254,2]
[368631155,1751253037166,-460.0,0.00018254,2]
[368631156,1751253037175,-460.0,0.00018254,2]
[368631157,1751253037185,-460.0,0.00018254,2]
[368631158,1751253037194,-460.0,0.00018254,2]
[368631159,1751253037203,-464.66118915,0.00018254,2]
[368631160,1751253037213,-462.89290734,0.00018254,2]
[368631161,1751253037222,-460.0,0.00018254,2]
[368631162,1751253037232,-463.90079772,0.00018254,2]
[368631163,1751253037241,-460.0,0.00018254,2]
[368631164,1751253037251,-151.0,0.00018254,2]
[368631165,1751253037260,-460.0,0.00018254,2]
[368631166,1751253037269,-151.0,0.00018254,2]
[368631167,1751253037279,-460.0,0.00018254,2]
[368631168,1751253037288,-463.72229384,0.00018254,2]
[368631169,1751253037298,-460.0,0.00018254,2]
[368631170,1751253037307,-151.0,0.00018254,2]
[368631171,1751253037316,-151.0,0.00018254,2]
[368631172,1751253037325,-151.0,0.00018254,2]
[368631173,1751253037334,-151.0,0.00018254,2]
[368631174,1751253037343,-460.0,0.00018254,2]
[368631175,1751253037352,-151.0,0.00018254,2]
[368631176,1751253037361,-460.0,0.00018254,2]
[368631177,1751253037371,-461.34414985,0.00018254,2]
[368631178,1751253037380,-151.0,0.00018254,2]
[368631179,1751253037389,-300.403676,0.00018254,2]
[368631180,1751253037398,-151.0,0.00018254,2]
[368631181,1751253037407,-501.284768,0.00018254,2]
[368631182,1751253037417,-501.284768,0.00018254,2]
[368631183,1751253037426,-151.0,0.00018254,2]
[368631184,1751253037435,-151.0,0.00018254,2]
[368631185,1751253037444,-151.0,0.00018254,2]
[368631186,1751253037453,-280.73122,0.00018254,2]
[368631187,1751253037463,-280.73122,0.00018254,2]
[368631188,1751253037472,-218.456007,0.00018254,2]
[368631189,1751253037482,-218.456007,0.00018254,2]
[368631190,1751253037491,-467.5608134,0.00018254,2]
[368631191,1751253037500,-376.28302138,0.00018254,2]
[368631192,1751253037509,-151.0,0.00018255,2]
[368631193,1751253037518,-151.0,0.00018255,2]
[368631194,1751253037527,-455.122158,0.00018255,2]
[368631195,1751253037536,-460.0,0.00018256,2]
[368631196,1751253037545,-151.0,0.00018256,2]
[368631197,1751253037554,-151.0,0.00018256,2]
[368631198,1751253037564,-151.0,0.00018256,2]
[368631199,1751253037572,-218.924333,0.00018256,2]
[368631200,1751253037581,-151.0,0.00018256,2]
[368631201,1751253037590,-1169.88094,0.00018256,2]
[368631202,1751253037599,-1169.88094,0.00018256,2]
[368631203,1751253037609,-151.0,0.00018257,2]
[368631204,1751253037618,-513.40167,0.00018257,2]
[368631205,1751253037626,-513.40167,0.00018257,2]
[368631206,1751253037635,-500.0,0.00018371,2]
[368631207,1751253037645,-500.0,0.00018371,2]
[368631208,1751253037654,-500.0,0.00018371,2]
[368631209,1751253037663,-500.0,0.00018371,2]
[368631210,1751253037672,-500.0,0.00018371,2]
[368631211,1751253037681,-500.0,0.00018371,2]
[368631212,1751253037690,-151.0,0.00018371,2]
[368631213,1751253037699,-500.0,0.00018371,2]
[368631214,1751253037710,-151.0,0.00018371,2]
[368631215,1751253037719,-151.0,0.00018371,2]
[368631216,1751253037728,-151.0,0.00018371,2]
[368631217,1751253037737,-151.0,0.00018371,2]
[368631218,1751253037746,-184.34391717,0.00018371,2]
[368631219,1751253037755,-151.0,0.00018371,2]
[368631220,1751253037765,-152.03839346,0.00018371,2]
[368631221,1751253037774,-152.14039904,0.00018371,2]
[368631222,1751253037793,-151.5704575,0.00018371,2]
[368631223,1751253037803,-152.05150782,0.00018371,2]
[368631224,1751253037813,-153.31741353,0.00018371,2]
[368631225,1751253037823,-152.87998486,0.00018371,2]
[368631226,1751253037834,-151.0,0.00018371,2]
[368631228,1751253037846,-152.87964028,0.00018371,2]
[368631230,1751253037856,-1855.36654482,0.00018381,2]
[368631233,1751253037866,-280.73122,0.00018398,2]
[368631235,1751253037876,-280.73122,0.00018398,2]
[368631236,1751253037887,-321.3849501,0.00018398,2]
[368631238,1751253037896,-500.0,0.00018398,2]
[368631239,1751253037906,-500.0,0.00018398,2]
[368631240,1751253037916,-500.0,0.00018398,2]
[368631241,1751253037926,-500.0,0.00018398,2]
[368631242,1751253037935,-500.0,0.00018398,2]
[368631243,1751253037944,-500.0,0.00018398,2]
[368631244,1751253037953,-151.0,0.00018398,2]
[368631246,1751253037962,-500.0,0.00018398,2]
[368631248,1751253037972,-151.0,0.00018398,2]
[368631249,1751253037981,-151.0,0.00018398,2]
[368631251,1751253037991,-201.53053107,0.00018398,2]
[368631252,1751253038000,-151.0,0.00018398,2]
[368631253,1751253038010,-151.0,0.00018398,2]
[368631254,1751253038019,-151.0,0.00018398,2]
[368631255,1751253038030,-500.0,0.00018426,2]
[368631256,1751253038039,-500.0,0.00018426,2]
[368631257,1751253038049,-500.0,0.00018426,2]
[368631259,1751253038058,-500.0,0.00018426,2]
[368631261,1751253038068,-500.0,0.00018426,2]
[368631263,1751253038078,-500.0,0.00018426,2]
[368631265,1751253038087,-151.94000114,0.00018426,2]
[368631267,1751253038096,-500.0,0.00018426,2]
[368631269,1751253038105,-151.0,0.00018426,2]
[368631271,1751253038116,-151.0,0.00018426,2]
[368631273,1751253038125,-151.32396753,0.00018426,2]
[368631275,1751253038135,-199.97640313,0.00018426,2]
[368631277,1751253038144,-151.0,0.00018426,2]
[368631279,1751253038153,-151.0,0.00018426,2]
[368631281,1751253038163,-151.0,0.00018426,2]
[368631283,1751253038172,-218.456007,0.00018426,2]
[368631284,1751253038181,-218.456007,0.00018426,2]
[368631286,1751253038191,-151.0,0.00018453,2]
[368631288,1751253038200,-151.0,0.00018453,2]
[368631290,1751253038209,-151.0,0.00018453,2]
[368631291,1751253038219,-151.0,0.00018453,2]
[368631292,1751253038228,-151.0,0.00018453,2]
[368631294,1751253038238,-151.0,0.00018453,2]
[368631295,1751253038247,-740.631066,0.00018453,2]
[368631296,1751253038256,-740.631066,0.00018453,2]
[368631297,1751253038266,-192.835188,0.00018453,2]
[368631298,1751253038276,-192.835188,0.00018453,2]
[368631299,1751253038285,-564.42475296,0.00018453,2]
[368631300,1751253038296,-153.10982746,0.00018453,2]
[368631301,1751253038305,-500.0,0.00018453,2]
[368631302,1751253038315,-500.0,0.00018453,2]
[368631303,1751253038324,-500.0,0.00018453,2]
[368631304,1751253038334,-500.0,0.00018453,2]
[368631305,1751253038344,-500.0,0.00018453,2]
[368631306,1751253038354,-194.06199229,0.00018453,2]
[368631307,1751253038365,-151.0,0.00018453,2]
[368631308,1751253038375,-151.0,0.00018453,2]
[368631309,1751253038385,-153.55084304,0.00018481,2]
[368631310,1751253038397,-500.0,0.00018481,2]
[368631311,1751253038412,-500.0,0.00018481,2]
[368631312,1751253038424,-500.0,0.00018481,2]
[368631313,1751253038436,-500.0,0.00018481,2]
[368631314,1751253038448,-152.38313303,0.00018481,2]
[368631315,1751253038462,-252.19220966,0.00018481,2]
[368631316,1751253038474,-151.0,0.00018503,2]
[368631317,1751253038487,-151.0,0.00018503,2]
[368631318,1751253038499,-286.013177,0.00018503,2]
[368631319,1751253038510,-151.0,0.00018503,2]
[368631320,1751253038522,-151.0,0.00018503,2]
[368631321,1751253038534,-151.0,0.00018503,2]
[368631322,1751253038546,-151.0,0.00018503,2]
[368631323,1751253038558,-151.0,0.00018503,2]
[368631324,1751253038569,-280.73122,0.00018503,2]
[368631325,1751253038580,-280.73122,0.00018503,2]
[368631326,1751253038591,-218.456007,0.00018503,2]
[368631327,1751253038602,-218.456007,0.00018503,2]
[368631329,1751253038614,-500.0,0.00018508,2]
[368631330,1751253038625,-500.0,0.00018508,2]
[368631331,1751253038636,-205.13496559,0.00018508,2]
[368631332,1751253038647,-257.79154987,0.00018508,2]
[368631333,1751253038658,-1169.88094,0.00018508,2]
[368631334,1751253038669,-501.284768,0.00018508,2]
[368631335,1751253038680,-501.284768,0.00018508,2]
[368631336,1751253038690,-1169.88094,0.00018508,2]
[368631337,1751253038700,-460.0,0.00018511,2]
[368631338,1751253038713,-460.0,0.00018511,2]
[368631339,1751253038722,-1317.79,0.00018511,2]
[368631340,1751253038733,-460.0,0.00018511,2]
[368631341,1751253038743,-460.0,0.00018512,2]
[368631342,1751253038754,-908.59,0.00018512,2]
[368631343,1751253038765,-1897.47,0.00018512,2]
[368631344,1751253038775,-2100.5,0.00018512,2]
[368631345,1751253038785,-460.0,0.00018512,2]
[368631346,1751253038795,-460.0,0.00018512,2]
[368631347,1751253038806,-497.60132738,0.00018512,2]
[368631348,1751253038816,-460.0,0.00018512,2]
[368631349,1751253039011,-483.20409046,0.00018512,2]
[368631350,1751253039021,-460.0,0.00018512,2]
[368631351,1751253039031,-460.0,0.00018512,2]
[368631352,1751253039040,-1992.91,0.00018512,2]
[368631353,1751253039050,-1855.7,0.00018512,2]
[368631354,1751253039060,-2731.33,0.00018512,2]
[368631355,1751253039070,-460.0,0.00018512,2]
[368631356,1751253039080,-460.0,0.00018512,2]
[368631357,1751253039090,-1236.31,0.00018512,2]
[368631358,1751253039099,-580.04623236,0.00018512,2]
[368631359,1751253039109,-280.73122,0.00018512,2]
[368631360,1751253039119,-280.73122,0.00018512,2]
[368631361,1751253039128,-460.0,0.00018512,2]
[368631362,1751253039138,-680.87,0.00018512,2]
[368631363,1751253039147,-530.93,0.00018512,2]
[368631364,1751253039156,-460.0,0.00018512,2]
[368631365,1751253039165,-460.0,0.00018512,2]
[368631366,1751253039175,-460.0,0.00018512,2]
[368631367,1751253039184,-477.74392969,0.00018513,2]
[368631368,1751253039193,-460.0,0.00018513,2]
[368631369,1751253039203,-476.90291936,0.00018513,2]
[368631370,1751253039213,-488.668448,0.00018513,2]
[368631371,1751253039222,-465.35547671,0.00018513,2]
[368631372,1751253039231,-460.0,0.00018513,2]
[368631373,1751253039241,-460.0,0.00018513,2]
[368631374,1751253039250,-460.0,0.00018513,2]
[368631375,1751253039260,-470.93813534,0.00018513,2]
[368631376,1751253039270,-466.17434458,0.00018513,2]
[368631377,1751253039279,-458.66359644,0.00018513,2]
[368631378,1751253039289,-460.0,0.00018513,2]
[368631379,1751253039298,-321.11085158,0.00018513,2]
[368631380,1751253039308,-460.0,0.00018513,2]
[368631381,1751253039317,-506.54340992,0.00018513,2]
[368631382,1751253039327,-460.0,0.00018513,2]
[368631383,1751253039336,-460.0,0.00018513,2]
[368631384,1751253039346,-473.3872097,0.00018513,2]
[368631385,1751253039355,-1348.32,0.00018513,2]
[368631386,1751253039364,-460.0,0.00018513,2]
[368631387,1751253039373,-398.81154836,0.00018513,2]
[368631388,1751253039383,-460.0,0.00018513,2]
[368631389,1751253039393,-460.0,0.00018513,2]
[368631390,1751253039402,-185.61132134,0.00018513,2]
[368631391,1751253039413,-422.59589355,0.00018513,2]
[368631392,1751253039422,-460.0,0.00018513,2]
[368631393,1751253039432,-450.77543439,0.00018513,2]
[368631394,1751253039441,-460.0,0.00018513,2]
[368631395,1751253039451,-330.70066359,0.00018513,2]
[368631396,1751253039461,-460.0,0.00018513,2]
[368631397,1751253039471,-677.1,0.00018513,2]
[368631398,1751253039480,-460.0,0.00018513,2]
[368631399,1751253039490,-460.0,0.00018513,2]
[368631400,1751253039499,-460.0,0.00018513,2]
[368631401,1751253039508,-460.0,0.00018513,2]
[368631402,1751253039517,-460.0,0.00018513,2]
[368631403,1751253039527,-460.0,0.00018513,2]
[368631404,1751253039536,-562.76,0.00018513,2]
[368631405,1751253039546,-460.0,0.00018513,2]
[368631406,1751253039555,-730.03,0.00018513,2]
[368631407,1751253039565,-460.0,0.00018513,2]
[368631408,1751253039574,-460.0,0.00018513,2]
[368631409,1751253039584,-490.15810114,0.00018513,2]
[368631410,1751253039593,-460.0,0.00018513,2]
[368631411,1751253039602,-460.0,0.00018513,2]
[368631412,1751253039611,-469.05686397,0.00018513,2]
[368631413,1751253039621,-460.0,0.00018513,2]
[368631414,1751253039630,-151.0,0.00018513,2]
[368631415,1751253039640,-460.0,0.00018513,2]
[368631416,1751253039649,-460.0,0.00018513,2]
[368631417,1751253039659,-280.73122,0.00018513,2]
[368631418,1751253039669,-280.73122,0.00018513,2]
[368631419,1751253039677,-487.28,0.00018513,2]
[368631420,1751253039687,-230.16909466,0.00018513,2]
[368631421,1751253039697,-460.0,0.00018513,2]
[368631422,1751253039706,-584.78404336,0.00018513,2]
[368631423,1751253039723,-218.456007,0.00018513,2]
[368631424,1751253039735,-218.456007,0.00018513,2]
[368631425,1751253039745,-460.0,0.00018513,2]
[368631426,1751253039755,-460.0,0.00018513,2]
[368631427,1751253039766,-617.08,0.00018513,2]
[368631428,1751253039776,-468.86742015,0.00018513,2]
[368631429,1751253039786,-460.0,0.00018513,2]
[368631430,1751253039796,-362.47879656,0.00018513,2]
[368631433,1751253039806,-460.0,0.00018513,2]
[368631434,1751253039816,-460.0,0.00018513,2]
[368631435,1751253039826,-460.0,0.00018513,2]
[368631436,1751253039839,-460.0,0.00018513,2]
[368631437,1751253039854,-460.0,0.00018513,2]
[368631439,1751253039864,-63066.43268448,0.00018514,2]
[368631452,1751253040639,-315.35805459,0.00018229,2]
[368631453,1751253040650,-182.68,0.00018252,2]
[368631454,1751253040661,-12619.51541116,0.00018514,2]
[368631455,1751253040670,-460.0,0.00018514,2]
[368631456,1751253040680,-460.0,0.00018514,2]
[368631457,1751253040690,-472.34768269,0.00018514,2]
[368631458,1751253040699,-460.0,0.00018514,2]
[368631459,1751253040710,-483.60718439,0.00018514,2]
[368631460,1751253040719,-216.351544,0.00018514,2]
[368631461,1751253040729,-151.0,0.00018514,2]
[368631462,1751253040738,-216.351544,0.00018514,2]
[368631463,1751253040747,-151.0,0.00018514,2]
[368631464,1751253040756,-189.895239,0.00018514,2]
[368631466,1751253040767,-460.0,0.00018514,2]
[368631467,1751253040776,-151.0,0.00018514,2]
[368631468,1751253040785,-151.0,0.00018514,2]
[368631469,1751253040796,-151.0,0.00018514,2]
[368631470,1751253040807,-190.344854,0.00018514,2]
[368631471,1751253040817,-406.047609,0.00018514,2]
[368631472,1751253040826,-406.047609,0.00018514,2]
[368631473,1751253040837,-191.205497,0.00018514,2]
[368631474,1751253040848,-151.0,0.00018514,2]
[368631475,1751253040858,-2229.522301,0.00018514,2]
[368631476,1751253040867,-2229.522301,0.00018514,2]
[368631477,1751253040877,-151.0,0.00018514,2]
[368631478,1751253040886,-152.766159,0.00018514,2]
[368631479,1751253040895,-151.0,0.00018514,2]
[368631480,1751253040905,-151.0,0.00018514,2]
[368631481,1751253040915,-151.0,0.00018514,2]
[368631482,1751253040925,-151.0,0.00018514,2]
[368631483,1751253040935,-151.0,0.00018514,2]
[368631484,1751253040945,-151.0,0.00018514,2]
[368631485,1751253040956,-151.0,0.00018514,2]
[368631486,1751253040966,-151.0,0.00018514,2]
[368631487,1751253040978,-164.918571,0.00018514,2]
[368631488,1751253040987,-164.918571,0.00018514,2]
[368631489,1751253040998,-151.0,0.00018514,2]
[368631490,1751253041007,-151.0,0.00018514,2]
[368631491,1751253041018,-340.34204906,0.00018514,2]
[368631492,1751253041028,-266.562881,0.00018514,2]
[368631493,1751253041037,-182.800405,0.00018514,2]
[368631494,1751253041048,-460.0,0.00018514,2]
[368631495,1751253041057,-460.0,0.00018514,2]
[368631496,1751253041067,-1169.88094,0.00018514,2]
[368631497,1751253041076,-501.284768,0.00018514,2]
[368631498,1751253041086,-501.284768,0.00018514,2]
[368631499,1751253041096,-1169.88094,0.00018514,2]
[368631500,1751253041105,-469.45047429,0.00018514,2]
[368631501,1751253041114,-467.72,0.00018514,2]
[368631502,1751253041124,-740.631066,0.00018514,2]
[368631503,1751253041134,-740.631066,0.00018514,2]
[368631504,1751253041143,-460.0,0.00018514,2]
[368631505,1751253041153,-460.0,0.00018514,2]
[368631506,1751253041163,-4152.47,0.00018514,2]
[368631507,1751253041172,-192.835188,0.00018514,2]
[368631508,1751253041182,-192.835188,0.00018514,2]
[368631509,1751253041192,-1076.4,0.00018514,2]
[368631510,1751253041202,-151.0,0.00018514,2]
[368631511,1751253041213,-616.92,0.00018514,2]
[368631512,1751253041222,-280.73122,0.00018514,2]
[368631513,1751253041232,-280.73122,0.00018514,2]
[368631514,1751253041241,-460.0,0.00018514,2]
[368631515,1751253041251,-218.456007,0.00018514,2]
[368631516,1751253041260,-668.05,0.00018514,2]
[368631517,1751253041270,-218.456007,0.00018514,2]
[368631518,1751253041279,-1701.05,0.00018514,2]
[368631519,1751253041288,-427.81522024,0.00018515,2]
[368631520,1751253041299,-473.89266516,0.00018515,2]
[368631521,1751253041308,-466.936925,0.00018515,2]
[368631522,1751253041317,-464.69742172,0.00018515,2]
[368631523,1751253041326,-460.0,0.00018515,2]
[368631524,1751253041337,-460.0,0.00018515,2]
[368631525,1751253041347,-460.0,0.00018515,2]
[368631526,1751253041356,-460.0,0.00018515,2]
[368631527,1751253041366,-460.0,0.00018515,2]
[368631528,1751253041375,-460.0,0.00018515,2]
[368631529,1751253041386,-151.0,0.00018515,2]
[368631530,1751253041396,-460.0,0.00018515,2]
[368631531,1751253041407,-460.0,0.00018515,2]
[368631532,1751253041418,-460.0,0.00018515,2]
[368631533,1751253041427,-460.0,0.00018515,2]
[368631534,1751253041436,-460.0,0.00018515,2]
[368631535,1751253041445,-151.0,0.00018515,2]
[368631536,1751253041454,-151.0,0.00018515,2]
[368631537,1751253041463,-460.0,0.00018515,2]
[368631538,1751253041472,-473.16428298,0.00018515,2]
[368631539,1751253041482,-460.0,0.00018515,2]
[368631540,1751253041491,-151.0,0.00018515,2]
[368631541,1751253041500,-151.0,0.00018515,2]
[368631542,1751253041509,-151.0,0.00018515,2]
[368631543,1751253041519,-500.0,0.00018515,2]
[368631544,1751253041528,-637.03,0.00018515,2]
[368631545,1751253041538,-607.46,0.00018515,2]
[368631546,1751253041547,-151.0,0.00018515,2]
[368631547,1751253041557,-151.0,0.00018515,2]
[368631548,1751253041566,-460.0,0.00018515,2]
[368631549,1751253041575,-460.0,0.00018515,2]
[368631550,1751253041584,-151.0,0.00018515,2]
[368631551,1751253041594,-464.99039301,0.00018515,2]
[368631552,1751253041603,-151.0,0.00018515,2]
[368631553,1751253041612,-460.0,0.00018515,2]
[368631554,1751253041621,-151.0,0.00018515,2]
[368631555,1751253041630,-460.0,0.00018515,2]
[368631556,1751253041639,-460.0,0.00018515,2]
[368631557,1751253041650,-460.0,0.00018515,2]
[368631558,1751253041660,-1031.72,0.00018515,2]
[368631559,1751253041669,-460.0,0.00018515,2]
[368631560,1751253041679,-460.0,0.00018515,2]
[368631561,1751253041688,-460.0,0.00018515,2]
[368631562,1751253041697,-460.0,0.00018515,2]
[368631563,1751253041706,-460.0,0.00018515,2]
[368631564,1751253041716,-460.0,0.00018515,2]
[368631565,1751253041726,-1169.88094,0.00018515,2]
[368631566,1751253041736,-501.284768,0.00018515,2]
[368631567,1751253041745,-460.0,0.00018515,2]
[368631568,1751253041754,-501.284768,0.00018515,2]
[368631569,1751253041764,-1169.88094,0.00018515,2]
[368631570,1751253041774,-740.631066,0.00018515,2]
[368631571,1751253041783,-747.14,0.00018515,2]
[368631572,1751253041792,-740.631066,0.00018515,2]
[368631573,1751253041801,-1251.82,0.00018515,2]
[368631574,1751253041810,-460.0,0.00018515,2]
[368631575,1751253041820,-460.0,0.00018515,2]
[368631576,1751253041829,-1642.67,0.00018515,2]
[368631577,1751253041839,-525.79,0.00018515,2]
[368631578,1751253041852,-192.835188,0.00018515,2]
[368631579,1751253041861,-192.835188,0.00018515,2]
[368631580,1751253041872,-460.0,0.00018515,2]
[368631581,1751253041882,-151.0,0.00018515,2]
[368631582,1751253041891,-280.73122,0.00018515,2]
[368631583,1751253041901,-934.86,0.00018515,2]
[368631584,1751253041910,-280.73122,0.00018515,2]
[368631585,1751253041920,-1645.98,0.00018515,2]
[368631586,1751253041929,-218.456007,0.00018515,2]
[368631587,1751253041938,-218.456007,0.00018515,2]
[368631588,1751253041947,-325.74406051,0.00018515,2]
[368631589,1751253041957,-460.0,0.00018515,2]
[368631590,1751253041967,-151.0,0.00018516,2]
[368631591,1751253042137,-151.0,0.00018516,2]
[368631592,1751253042148,-455.122158,0.00018516,2]
[368631593,1751253042157,-216.351544,0.00018516,2]
[368631594,1751253042167,-151.0,0.00018516,2]
[368631595,1751253042176,-216.351544,0.00018516,2]
[368631596,1751253042186,-189.895239,0.00018516,2]
[368631597,1751253042195,-189.895239,0.00018516,2]
[368631598,1751253042205,-151.0,0.00018516,2]
[368631599,1751253042214,-406.047609,0.00018516,2]
[368631600,1751253042223,-406.047609,0.00018516,2]
[368631601,1751253042233,-2229.522301,0.00018516,2]
[368631602,1751253042242,-2229.522301,0.00018516,2]
[368631603,1751253042251,-151.0,0.00018516,2]
[368631604,1751253042262,-151.0,0.00018516,2]
[368631605,1751253042271,-151.0,0.00018516,2]
[368631606,1751253042280,-151.0,0.00018516,2]
[368631607,1751253042290,-151.0,0.00018516,2]
[368631608,1751253042300,-151.0,0.00018516,2]
[368631609,1751253042309,-151.0,0.00018516,2]
[368631610,1751253042318,-5033.76,0.00018516,2]
[368631611,1751253042327,-151.0,0.00018516,2]
[368631612,1751253042336,-164.918571,0.00018516,2]
[368631613,1751253042346,-164.918571,0.00018516,2]
[368631614,1751253042356,-151.0,0.00018516,2]
[368631615,1751253042369,-1330.15,0.00018516,2]